bitfinex/quotes_ETHUSD_20260114
["timestamp","ask_amount","ask_price","bid_price","bid_amount"]
[1768403252214,0.74518779,3339.7,3337.1,14.856]
[1768403252215,0.90849596,3339.0,3337.1,14.856]
[1768403252415,0.90849596,3338.6,3336.7,0.356]
[1768403252828,0.90849596,3338.6,3336.8,14.5]
[1768403252829,0.93847392,3338.6,3336.8,14.5]
[1768403253022,0.90849596,3338.4,3336.9,1.4856]
[1768403253471,0.90849596,3338.4,3336.7,0.356]
[1768403253472,0.90849596,3341.5,3339.4,2.99920673]
[1768403253754,2.99293666,3341.2,3340.0,0.09032472]
[1768403253969,0.90849596,3341.1,3339.5,15.64978458]
[1768403254174,0.90849596,3341.1,3339.2,0.09032472]
[1768403254456,0.90849596,3340.9,3339.2,0.09032472]
[1768403254664,0.90849596,3340.9,3339.2,14.59032472]
[1768403255121,0.90849596,3340.9,3339.2,0.09032472]
[1768403255316,0.90849596,3340.7,3339.2,0.09032472]
[1768403255656,0.90849596,3340.5,3339.0,0.356]
[1768403256631,0.90849596,3340.3,3337.2,0.356]
[1768403256840,0.90849596,3340.1,3337.5,0.09032472]
[1768403257146,0.90849596,3339.7,3337.2,14.88596524]
[1768403257369,0.90849596,3339.5,3337.2,14.856]
[1768403258163,0.90849596,3339.5,3337.2,0.356]
[1768403258477,0.90849596,3339.3,3337.2,0.70031003]
[1768403258765,0.90849596,3339.1,3337.2,0.356]
[1768403258953,0.90849596,3338.9,3337.2,0.356]
[1768403259154,0.90849596,3338.7,3337.2,0.356]
[1768403259458,0.90849596,3338.6,3337.2,0.356]
[1768403260068,1.46349596,3338.6,3337.2,0.356]
[1768403260262,1.46349596,3338.6,3336.3,3.08858807]
[1768403260263,0.93847392,3338.5,3336.3,0.001]
[1768403260445,1.02879864,3338.5,3336.3,0.001]
[1768403260630,0.90849596,3337.6,3336.3,0.001]
[1768403261030,0.93847392,3337.6,3336.3,0.001]
[1768403261475,0.16,3337.5,3336.3,0.001]
[1768403261641,0.90849596,3337.0,3336.3,0.001]
[1768403262763,1.46349596,3337.0,3336.3,0.001]
[1768403262987,0.16,3337.9,3336.3,0.001]
[1768403262988,0.5550001,3337.6,3336.3,0.001]
[1768403263338,0.5550001,3337.6,3336.4,0.09032472]
[1768403263573,0.90849596,3337.7,3336.5,0.02997152]
[1768403263783,0.90849596,3338.4,3336.7,0.09032472]
[1768403264087,6.8993898,3338.4,3336.8,0.02996883]
[1768403264791,0.90849596,3338.3,3336.7,0.09032472]
[1768403264963,0.90849596,3338.1,3336.8,0.15524543]
[1768403265304,5.99089384,3338.4,3336.8,0.15524543]
[1768403265305,0.90849596,3337.9,3336.8,0.15524543]
[1768403265654,0.90849596,3337.9,3336.3,0.001]
[1768403266291,0.90849596,3337.7,3335.2,3.08863156]
[1768403266466,0.90849596,3337.7,3335.3,2.99823081]
[1768403266663,0.90849596,3337.5,3335.1,2.99837783]
[1768403266866,0.90849596,3337.5,3335.2,0.0299832]
[1768403267090,0.90849596,3337.5,3335.2,3.02829994]
[1768403267337,0.90849596,3337.5,3335.3,0.31186247]
[1768403267586,0.90849596,3337.4,3335.2,0.09032472]
[1768403267960,0.90849596,3337.4,3335.2,3.0886323]
[1768403268691,0.90849596,3337.4,3335.3,2.99822632]
[1768403268987,0.90849596,3337.2,3335.2,3.08861284]
[1768403269190,0.90849596,3337.2,3335.3,0.64772429]
[1768403269398,0.90849596,3337.2,3335.3,0.02998231]
[1768403269692,0.90849596,3337.2,3335.2,0.09032472]
[1768403269902,0.90849596,3337.1,3335.2,0.09032472]
[1768403270202,0.90849596,3337.1,3335.2,3.08863165]
[1768403270567,0.90849596,3337.1,3335.2,6.08695259]
[1768403270764,0.90849596,3337.1,3335.3,0.61772773]
[1768403270997,0.90849596,3337.1,3335.9,0.09032472]
[1768403272112,0.90849596,3337.1,3335.9,0.12030163]
[1768403272296,0.92084885,3337.0,3335.9,0.02997691]
[1768403272495,0.95082681,3337.0,3335.6,0.001]
[1768403272808,0.555,3337.1,3335.7,0.09032472]
[1768403273106,0.555,3337.1,3335.8,2.99778164]
[1768403273310,0.555,3337.1,3335.7,3.08816379]
[1768403273802,0.555,3337.1,3335.7,6.0860353]
[1768403274004,1e-08,3337.2,3336.2,0.09032472]
[1768403274571,3.91737749,3337.2,3335.7,0.09032472]
[1768403274784,1.47584886,3337.2,3335.7,6.0860629]
[1768403274983,1.47584886,3337.2,3335.8,3.60646184]
[1768403275188,1.47584886,3337.2,3335.8,3.60646918]
[1768403275598,0.92084885,3337.1,3335.8,0.60870629]
[1768403275798,0.92084885,3337.1,3335.7,0.09032472]
[1768403276176,0.92084885,3337.1,3335.6,0.001]
[1768403276177,0.92084885,3337.1,3335.6,0.03097961]
[1768403276707,0.92084885,3337.1,3335.6,0.001]
[1768403276905,0.92084885,3337.1,3335.6,3.02889031]
[1768403277106,1.47584885,3337.1,3335.7,0.60270165]
[1768403277318,7.46913759,3337.1,3335.7,0.60270165]
[1768403277610,7.46913759,3337.1,3335.6,0.001]
[1768403277611,0.92084885,3337.0,3335.6,0.001]
[1768403277793,0.92084885,3336.8,3335.6,0.001]
[1768403277989,0.92084885,3336.8,3334.5,2.99893829]
[1768403278397,0.92084885,3336.8,3334.4,3.0893603]
[1768403278582,0.92084885,3336.7,3334.6,2.99880606]
[1768403278787,0.92084885,3336.7,3334.6,3.02879466]
[1768403278982,12.54157748,3337.1,3334.6,3.02879466]
[1768403278983,0.92084885,3336.5,3334.7,2.9986873]
[1768403279211,0.92084885,3336.5,3334.8,0.12031152]
[1768403279420,0.92084885,3336.5,3334.9,0.32393121]
[1768403279625,1.47584885,3336.5,3335.0,0.029985]
[1768403280420,0.555,3336.5,3335.5,0.09032472]
[1768403280623,1.47584885,3337.1,3335.7,0.09032472]
[1768403280920,4.47248201,3337.1,3335.8,0.02997781]
[1768403281123,0.555,3337.1,3335.9,3.08801649]
[1768403281286,0.555,3337.1,3336.0,0.3208319]
[1768403282117,4.10662626,3337.1,3336.0,0.3208319]
[1768403282371,0.92084885,3337.0,3335.0,0.09032472]
[1768403282487,7.10325252,3337.1,3334.6,0.09032472]
[1768403282488,0.92084885,3336.8,3334.6,0.09032472]
[1768403282689,0.92084885,3336.8,3335.5,2.99804656]
[1768403282894,4.10662626,3337.1,3335.7,2.99781738]
[1768403283095,1.11,3337.1,3335.8,0.6989436]
[1768403283293,1.11,3337.1,3335.8,0.09032472]
[1768403283528,1.11,3337.1,3335.8,3.08807657]
[1768403283739,4.10661558,3337.1,3335.6,0.09032472]
[1768403283909,7.10323116,3337.1,3335.6,0.09032472]
[1768403284238,2.03084885,3337.1,3335.7,0.31786485]
[1768403284536,2.58584885,3337.1,3335.8,6.08585221]
[1768403284886,0.002,3336.8,3335.8,3.08807057]
[1768403285121,0.002,3336.8,3336.0,2.99760191]
[1768403285321,2.99482322,3339.1,3336.4,0.09032472]
[1768403285620,0.92084885,3338.1,3336.4,0.09032472]
[1768403286939,1.47584885,3338.1,3336.4,0.09032472]
[1768403287145,4.47164083,3338.1,3336.6,0.09032472]
[1768403287310,4.47164083,3338.1,3336.7,0.64747094]
[1768403287510,4.47164083,3338.1,3336.7,0.61750121]
[1768403287935,0.555,3338.1,3337.2,0.09032472]
[1768403288107,1.47584885,3338.1,3336.7,0.61750121]
[1768403288313,0.92084885,3338.0,3336.8,0.9699284]
[1768403288514,0.92084885,3338.0,3336.1,0.356]
[1768403288745,0.95082681,3338.0,3336.1,0.356]
[1768403288951,0.92084885,3338.0,3336.1,0.356]
[1768403289149,0.92084885,3337.8,3336.1,0.356]
[1768403289813,0.002,3338.5,3336.8,0.09032472]
[1768403289814,3.91822779,3338.5,3336.8,0.09032472]
[1768403290013,0.92084885,3338.4,3336.2,0.09032472]
[1768403290216,0.92084885,3338.4,3336.1,0.356]
[1768403290526,0.92084885,3338.2,3336.1,0.356]
[1768403290727,0.92084885,3338.0,3336.2,0.12029894]
[1768403290928,0.92084885,3338.0,3336.3,0.34737969]
[1768403291127,0.92084885,3337.6,3336.3,0.34737969]
[1768403291432,0.92084885,3337.6,3335.0,0.09032472]
[1768403291433,0.92084885,3337.4,3335.5,0.03098051]
[1768403291637,0.92084885,3337.2,3335.5,0.001]
[1768403292053,0.92084885,3337.2,3335.5,3.02894515]
[1768403292254,0.92084885,3337.2,3335.6,0.31192699]
[1768403292464,0.92084885,3337.2,3335.5,0.001]
[1768403292465,0.92084885,3337.0,3335.5,0.001]
[1768403293222,0.92084885,3336.8,3335.5,0.001]
[1768403294342,0.92084885,3336.7,3335.5,0.001]
[1768403295360,0.92084885,3336.5,3335.5,0.001]
[1768403295676,0.92084885,3336.3,3335.5,0.001]
[1768403296365,3.55190703,3336.8,3335.5,0.001]
[1768403296662,1.11,3336.8,3335.5,0.001]
[1768403296954,0.92084885,3336.7,3335.5,0.001]
[1768403297321,0.92084885,3336.7,3335.5,3.02896787]
[1768403297515,3.91783655,3336.7,3335.6,0.60271542]
[1768403297718,0.92084885,3336.6,3335.5,0.001]
[1768403298319,1.11,3336.8,3335.8,0.001]
[1768403298731,1e-08,3336.8,3335.9,0.09032472]
[1768403299122,0.55500001,3336.8,3335.9,0.09032472]
[1768403299325,1.47584886,3336.8,3335.8,0.001]
[1768403299854,3.91730756,3337.3,3335.8,0.001]
[1768403300020,0.92084885,3337.3,3335.9,2.9976832]
[1768403300220,3.91728319,3337.3,3336.0,0.5996395]
[1768403300627,0.9155213,3337.2,3336.0,0.5996395]
[1768403300928,0.9248475,3337.1,3335.8,0.001]
[1768403301358,0.9248475,3336.9,3335.8,0.001]
[1768403302477,0.9248475,3336.7,3335.8,0.001]
[1768403302650,0.9248475,3336.5,3335.5,0.001]
[1768403303450,1.4798475,3337.1,3335.5,0.001]
[1768403303691,0.9248475,3337.0,3335.5,0.001]
[1768403304853,0.9248475,3336.9,3335.5,0.001]
[1768403305278,0.9248475,3336.7,3335.5,0.001]
[1768403306372,0.9248475,3336.6,3335.5,0.001]
[1768403307184,0.555,3336.7,3335.5,0.001]
[1768403307353,5.03147024,3337.1,3335.8,0.09032472]
[1768403307681,8.02809298,3337.1,3335.8,0.09032472]
[1768403307882,5.03147024,3337.1,3335.9,14.5]
[1768403308082,5.03147024,3337.1,3336.0,1.45903247]
[1768403308284,2.0348475,3337.1,3336.0,1.45903247]
[1768403308475,3.55119071,3337.6,3336.2,0.09032472]
[1768403308663,1.11,3337.5,3336.4,0.09032472]
[1768403308868,1.11,3337.5,3336.3,0.09032472]
[1768403309069,1.11,3337.5,3336.4,14.5]
[1768403309277,1.11,3337.5,3336.5,1.45903247]
[1768403309477,2.99634445,3337.4,3336.3,0.09032472]
[1768403310357,2.99634445,3337.4,3336.2,14.5]
[1768403310358,0.9248475,3337.3,3336.2,14.5]
[1768403311255,5.99304806,3337.2,3336.2,14.5]
[1768403311484,5.99304806,3337.2,3336.3,1.45]
[1768403311665,1.11,3337.1,3335.8,0.09032472]
[1768403312089,2.0348475,3337.1,3335.8,14.59032472]
[1768403312289,0.9248475,3337.0,3335.5,0.001]
[1768403312594,0.9248475,3337.0,3335.6,0.355]
[1768403312796,0.9248475,3337.0,3335.7,0.12030343]
[1768403312994,0.9248475,3337.0,3335.9,0.09032472]
[1768403313287,1.11,3337.1,3336.0,0.32083883]
[1768403313486,1.11,3337.1,3336.1,0.12029984]
[1768403313889,1.11,3337.1,3335.9,0.09032472]
[1768403313890,7.65823002,3337.1,3335.9,0.09032472]
[1768403314187,8.58307752,3337.1,3335.9,0.09032472]
[1768403314394,8.58307752,3337.1,3335.2,0.09032472]
[1768403314395,0.95482546,3337.0,3333.9,0.09132472]
[1768403314578,0.9248475,3336.9,3333.9,0.09032472]
[1768403314776,0.9248475,3336.7,3334.3,0.09032472]
[1768403314990,0.9248475,3336.5,3334.6,2.99885852]
[1768403315193,16.64807624,3337.1,3334.7,0.0299877]
[1768403315194,0.9248475,3336.3,3334.7,0.0299877]
[1768403315383,2.99742221,3336.2,3334.9,0.09032472]
[1768403315584,0.9248475,3336.1,3335.0,0.35343241]
[1768403315798,0.9248475,3336.1,3335.1,0.0299841]
[1768403315964,0.9248475,3336.1,3334.9,0.09032472]
[1768403316303,0.9248475,3336.0,3334.8,0.355]
[1768403317307,0.9248475,3335.7,3334.2,0.355]
[1768403317506,0.9248475,3335.7,3334.3,1.79445754]
[1768403317799,0.9248475,3335.7,3334.3,1.82444884]
[1768403318003,0.9248475,3335.7,3334.5,0.09032472]
[1768403318205,0.9248475,3335.7,3334.6,0.0299886]
[1768403318586,1.4798475,3335.7,3334.6,0.0299886]
[1768403318774,1.4798475,3335.7,3334.5,0.09032472]
[1768403318975,1.4798475,3335.7,3334.5,0.92317767]
[1768403319175,0.9248475,3335.6,3334.5,0.83285295]
[1768403319489,0.9248475,3335.5,3334.5,0.83285295]
[1768403319685,0.555,3335.7,3334.8,0.09032472]
[1768403319913,1.4798475,3336.1,3334.8,0.09032472]
[1768403320112,0.9248475,3336.0,3334.8,0.09032472]
[1768403320322,0.9248475,3336.0,3334.9,0.355]
[1768403321047,0.9248475,3336.0,3334.8,0.09032472]
[1768403321048,0.9248475,3336.0,3334.8,0.0299868]
[1768403321205,0.9248475,3335.9,3334.9,0.355]
[1768403321545,3.92262914,3335.8,3334.9,0.355]
[1768403321843,0.9248475,3335.7,3334.9,0.355]
[1768403322336,0.555,3336.0,3335.0,0.029985]
[1768403322536,0.555,3336.0,3335.1,0.64724877]
[1768403322903,0.555,3336.0,3335.2,0.0299832]
[1768403323107,0.555,3336.0,3335.3,0.355]
[1768403323301,3.92182055,3336.7,3335.4,0.09032472]
[1768403323520,0.9248475,3336.6,3335.4,3.11844448]
[1768403323722,0.9248475,3336.6,3335.5,0.35637692]
[1768403324411,0.9248475,3336.6,3335.6,0.355]
[1768403324827,0.555,3336.7,3335.6,0.355]
[1768403325022,4.47650001,3337.1,3336.0,0.09032472]
[1768403325228,0.002,3337.5,3336.7,0.09032472]
[1768403325431,0.9248475,3338.0,3336.9,5.99358686]
[1768403325749,1.4798475,3338.6,3337.1,0.09032472]
[1768403325954,0.9248475,3338.0,3337.2,0.355]
[1768403326166,0.557,3338.1,3337.2,0.355]
[1768403326621,0.9268475,3338.5,3337.3,14.59032472]
[1768403326947,0.9268475,3338.5,3337.4,1.85856494]
[1768403326948,2.9973813,3338.5,3337.4,1.85856494]
[1768403327628,0.002,3338.9,3337.6,0.09032472]
[1768403327842,0.002,3338.9,3337.8,0.09032472]
[1768403328345,3.92134002,3339.5,3338.0,0.09032472]
[1768403328543,3.92134002,3339.5,3338.1,0.356]
[1768403328753,0.557,3339.5,3338.4,0.09032472]
[1768403329038,3.9189209,3340.0,3338.6,0.09032472]
[1768403329203,2.99585701,3340.2,3338.8,0.09032472]
[1768403329204,2.99583858,3340.2,3338.8,0.09032472]
[1768403329514,0.002,3340.2,3339.0,2.99490865]
[1768403329728,0.9268475,3340.2,3339.1,0.64363159]
[1768403329930,0.9268475,3340.2,3339.2,0.355]
[1768403330348,0.002,3340.2,3339.2,0.44532472]
[1768403330702,0.002,3340.2,3339.0,0.09032472]
[1768403330912,0.002,3340.2,3339.1,0.355]
[1768403331116,0.557,3340.2,3339.1,0.355]
[1768403331318,0.557,3340.2,3338.2,0.09032472]
[1768403331526,0.557,3340.2,3338.3,2.99551457]
[1768403331527,8.98176699,3340.1,3338.3,2.99551457]
[1768403331705,0.95725941,3340.0,3338.2,0.09032472]
[1768403331906,0.98723737,3340.0,3338.3,14.5]
[1768403332147,0.98723737,3340.0,3337.6,0.09032472]
[1768403332148,0.95725941,3340.0,3337.6,0.09032472]
[1768403332350,0.95725941,3339.8,3338.0,2.9958038]
[1768403332549,0.95725941,3339.8,3338.0,14.5]
[1768403332847,0.95725941,3339.6,3338.1,0.355]
[1768403333412,0.95725941,3339.3,3337.1,0.09032472]
[1768403333616,0.95725941,3339.1,3337.2,3.35146189]
[1768403333910,0.95725941,3339.1,3337.3,2.99642107]
[1768403334309,0.95725941,3339.1,3337.5,0.09032472]
[1768403334509,0.95725941,3339.1,3337.3,0.09032472]
[1768403334756,0.95725941,3339.1,3337.2,14.5]
[1768403334910,0.95725941,3338.9,3337.1,0.09032472]
[1768403335241,11.97819964,3339.4,3337.2,0.38496524]
[1768403335242,0.95725941,3338.7,3337.2,0.38496524]
[1768403335545,0.95725941,3338.7,3337.4,2.99634445]
[1768403335546,2.99526747,3338.6,3337.4,2.99634445]
[1768403335838,3.55026747,3338.6,3337.4,2.99634445]
[1768403336021,0.95725941,3339.3,3337.5,0.12028726]
[1768403336208,2.99472927,3339.2,3337.5,0.09032472]
[1768403336409,0.95725941,3339.1,3337.6,0.355]
[1768403336620,0.95725941,3339.1,3337.7,0.64380136]
[1768403338245,2.99490865,3339.0,3337.7,3.63979201]
[1768403338744,2.99490865,3339.0,3337.8,0.355]
[1768403340042,0.555,3339.1,3337.9,0.02995895]
[1768403340243,0.555,3339.1,3338.0,6.08193646]
[1768403340244,0.25553293,3339.1,3338.0,6.08193646]
[1768403340417,0.25553293,3339.1,3338.2,0.09032472]
[1768403340818,0.81053293,3339.1,3338.3,0.355]
[1768403341019,1.51225941,3339.6,3338.3,0.355]
[1768403341250,2.99448876,3339.5,3338.3,0.355]
[1768403341446,2.99448876,3339.5,3338.2,0.09032472]
[1768403341447,5.98897752,3339.5,3338.2,0.09032472]
[1768403341625,5.98897752,3339.5,3338.1,0.65272612]
[1768403341626,0.95725941,3339.4,3338.3,0.356]
[1768403341825,0.95725941,3339.4,3338.4,0.356]
[1768403342038,0.95725941,3339.2,3338.1,0.65272612]
[1768403342246,0.555,3339.6,3338.0,0.001]
[1768403342247,5.9898173,3339.0,3338.0,0.001]
[1768403342418,6.94707671,3339.0,3338.1,0.356]
[1768403342818,3.95216806,3339.0,3338.1,0.356]
[1768403343020,3.54937946,3339.6,3338.4,0.09032472]
[1768403343348,0.48263326,3339.0,3338.4,0.09032472]
[1768403343546,3.54937946,3339.6,3338.4,0.09032472]
[1768403343751,0.555,3339.6,3338.4,0.09032472]
[1768403344119,3.54937436,3339.6,3338.4,0.09032472]
[1768403344318,7.50100813,3339.6,3338.2,0.09032472]
[1768403344632,0.95725941,3339.5,3338.3,0.356]
[1768403345241,0.555,3339.6,3338.4,0.38595446]
[1768403345440,1.11,3339.6,3338.4,6.3767772]
[1768403345622,4.10442068,3339.6,3338.5,1.00271019]
[1768403345824,0.95725941,3339.5,3338.5,0.64671019]
[1768403346056,0.95725941,3339.5,3338.6,0.356]
[1768403346241,1.11,3339.6,3338.7,2.99517776]
[1768403346633,1.11,3339.6,3338.6,3.35123093]
[1768403346828,1.11,3339.6,3338.6,6.3464984]
[1768403347039,1.11,3339.6,3338.7,0.75792178]
[1768403347357,0.002,3339.9,3338.9,0.09032472]
[1768403347523,0.002,3340.5,3339.1,0.09032472]
[1768403347933,8.05694595,3340.2,3339.2,0.356]
[1768403348223,5.06310268,3340.2,3339.3,1.4856]
[1768403349057,8.05694595,3340.2,3338.7,0.63764529]
[1768403349254,0.98723737,3340.1,3338.8,0.356]
[1768403349565,0.98723737,3340.1,3338.0,0.001]
[1768403349566,0.95725941,3340.1,3338.0,0.001]
[1768403349728,0.95725941,3339.9,3338.1,0.356]
[1768403350067,0.95725941,3339.7,3338.3,2.99552006]
[1768403350437,0.02997796,3339.6,3338.1,0.356]
[1768403350625,1.51225941,3339.7,3338.1,0.356]
[1768403350826,5.98874116,3339.6,3338.2,2.99562638]
[1768403351027,5.98874116,3339.6,3338.3,0.63483289]
[1768403351268,5.98874116,3339.6,3338.0,0.001]
[1768403351269,0.98723737,3339.5,3338.0,0.001]
[1768403351561,0.95725941,3339.5,3338.1,0.356]
[1768403351860,0.95725941,3339.3,3338.2,0.356]
[1768403352151,0.95725941,3339.2,3338.3,0.356]
[1768403352964,5.98963792,3339.1,3338.3,0.356]
[1768403353133,0.95725941,3339.0,3338.0,0.001]
[1768403353327,0.95725941,3339.0,3338.1,0.355]
[1768403354142,0.95725941,3339.0,3338.2,0.02995626]
[1768403354360,0.95725941,3339.0,3338.1,0.355]
[1768403354736,0.95725941,3339.0,3338.5,0.001]
[1768403354934,0.95725941,3339.0,3338.0,0.001]
[1768403354935,0.95725941,3338.8,3338.0,0.001]
[1768403355152,0.95725941,3338.8,3338.1,0.356]
[1768403355350,1.11725941,3338.7,3336.1,0.91289085]
[1768403355557,0.555,3338.8,3336.1,0.91289085]
[1768403355558,0.95725941,3338.2,3336.8,2.99680896]
[1768403355758,0.95725941,3338.2,3336.9,2.99678356]
[1768403356038,0.16,3338.6,3336.2,2.99735281]
[1768403356039,0.95725941,3337.7,3336.2,2.99735281]
[1768403356237,0.95725941,3337.7,3335.7,0.09032472]
[1768403356238,0.95725941,3337.7,3336.3,0.95549529]
[1768403356460,0.95725941,3337.7,3336.3,0.356]
[1768403356779,0.95725941,3337.7,3336.4,2.99721094]
[1768403356939,0.95725941,3337.7,3336.1,0.09032472]
[1768403356940,0.95725941,3337.8,3336.1,0.09032472]
[1768403357266,0.95725941,3337.8,3336.5,0.356]
[1768403357772,0.95725941,3337.7,3336.5,0.356]
[1768403357966,0.95725941,3337.7,3336.2,2.99740716]
[1768403358272,0.95725941,3337.7,3336.3,0.356]
[1768403359274,0.95725941,3337.5,3335.8,1.45903247]
[1768403359469,0.95725941,3337.3,3335.9,0.356]
[1768403360270,0.555,3337.3,3336.0,0.02997601]
[1768403360471,0.555,3337.3,3336.1,0.19353332]
[1768403360671,0.95803658,3337.2,3335.5,17.49798523]
[1768403360859,0.95803658,3337.2,3335.5,14.5]
[1768403361064,0.95803658,3337.2,3335.6,0.356]
[1768403361310,6.98595364,3337.1,3335.6,0.356]
[1768403361468,0.992726,3337.0,3335.1,0.001]
[1768403361796,0.992726,3336.8,3335.2,0.65594971]
[1768403362160,0.992726,3336.8,3335.2,3.65424658]
[1768403362561,0.992726,3336.8,3335.3,0.02998231]
[1768403362562,0.992726,3336.7,3335.3,0.02998231]
[1768403362770,0.992726,3336.7,3335.2,0.356]
[1768403362973,0.992726,3336.7,3335.2,2.99825869]
[1768403363196,2.99706287,3336.6,3335.3,3.96303642]
[1768403363401,0.555,3336.8,3335.3,6.35245968]
[1768403363691,5.99394974,3336.7,3335.3,0.356]
[1768403363990,5.99394974,3336.7,3335.4,0.3445722]
[1768403364310,6.98667574,3336.7,3335.4,0.3445722]
[1768403365018,0.992726,3336.6,3335.4,0.2945722]
[1768403365190,0.992726,3336.6,3335.5,0.38598051]
[1768403365191,5.9943054,3336.5,3335.5,0.38598051]
[1768403365363,2.9971527,3336.5,3335.5,0.38598051]
[1768403365563,5.9943054,3336.5,3335.6,0.3678681]
[1768403365758,5.9943054,3336.5,3335.5,0.356]
[1768403366160,2.9971527,3336.5,3335.5,0.356]
[1768403366465,2.9971527,3336.5,3335.6,0.02997961]
[1768403366775,2.9971527,3336.5,3335.7,0.02997871]
[1768403367094,0.555,3336.7,3335.8,0.02997781]
[1768403367263,0.25531313,3336.7,3335.9,0.02997691]
[1768403367609,3.80728618,3336.7,3336.0,0.356]
[1768403367965,3.80728618,3336.7,3335.7,0.33840234]
[1768403368263,3.50759789,3336.7,3336.1,0.356]
[1768403368459,3.50759789,3336.7,3335.7,0.33940234]
[1768403368460,6.50457587,3336.7,3335.7,0.33940234]
[1768403368695,6.50457587,3336.7,3335.8,0.356]
[1768403368904,3.50759789,3336.7,3335.8,0.356]
[1768403369201,6.50457587,3336.7,3335.8,0.356]
[1768403369504,6.50457587,3336.7,3335.1,0.001]
[1768403369505,0.16,3336.3,3335.1,0.001]
[1768403369668,0.992726,3336.0,3335.1,0.001]
[1768403369871,0.992726,3335.8,3333.9,2.99947788]
[1768403370072,0.992726,3335.8,3334.5,0.356]
[1768403370569,0.992726,3335.6,3333.5,0.09032472]
[1768403370772,0.942726,3335.6,3333.7,5.99934006]
[1768403370991,0.942726,3335.6,3333.7,6.08966478]
[1768403371194,0.942726,3335.6,3333.8,14.5]
[1768403371393,0.992726,3335.4,3333.8,17.49949459]
[1768403371582,0.992726,3335.4,3333.8,20.49907464]
[1768403371783,0.992726,3335.4,3333.9,2.09453994]
[1768403371984,1.152726,3335.3,3333.8,0.09032472]
[1768403372296,1.152726,3335.3,3334.0,0.09032472]
[1768403372551,0.992726,3335.0,3334.0,0.09032472]
[1768403372695,0.992726,3335.0,3334.2,0.09032472]
[1768403373414,5.99718132,3334.9,3334.2,0.09032472]
[1768403373602,2.99832094,3335.2,3334.6,0.09032472]
[1768403373774,2.99832094,3335.2,3334.7,0.09032472]
[1768403373979,2.99832094,3335.2,3334.3,0.09032472]
[1768403374195,5.99664188,3335.2,3334.0,0.09032472]
[1768403374399,0.992726,3335.1,3334.0,0.09032472]
[1768403374714,8.99496282,3335.2,3333.8,0.356]
[1768403374715,1.152726,3335.0,3333.8,0.356]
[1768403375203,1.152726,3335.0,3333.7,0.09032472]
[1768403375204,1.152726,3335.0,3333.4,3.00093436]
[1768403375375,0.992726,3334.8,3333.6,0.356]
[1768403376003,0.992726,3334.8,3333.7,0.0299967]
[1768403376414,0.992726,3334.8,3333.6,0.356]
[1768403376603,0.992726,3334.8,3333.7,0.0299967]
[1768403376808,0.992726,3334.8,3333.8,0.34761712]
[1768403377130,5.99718132,3334.9,3333.7,0.09032472]
[1768403377300,0.555,3334.8,3333.7,0.09032472]
[1768403377819,5.997541,3334.7,3333.7,0.09032472]
[1768403378026,0.555,3334.8,3333.9,0.09032472]
[1768403378322,0.555,3334.8,3334.2,0.09032472]
[1768403378490,0.555,3334.8,3334.3,0.356]
[1768403378693,0.555,3335.1,3334.4,0.12031512]
[1768403378694,3.55342439,3335.1,3334.4,0.12031512]
[1768403379009,3.55342439,3335.1,3334.3,0.356]
[1768403379829,4.10842439,3335.1,3334.3,0.356]
[1768403379992,7.10684878,3335.1,3334.3,0.356]
[1768403380190,7.10684878,3335.1,3333.9,14.94395663]
[1768403380395,4.10842439,3335.1,3334.4,0.356]
[1768403380610,1.11,3335.1,3334.4,0.356]
[1768403380809,4.10846206,3335.1,3334.4,0.356]
[1768403380997,1.11,3335.1,3334.4,0.356]
[1768403381203,0.555,3335.3,3334.5,0.12031422]
[1768403381525,0.555,3335.3,3334.6,1.01248906]
[1768403381727,0.555,3335.3,3334.7,0.09032472]
[1768403382138,3.5532485,3335.3,3334.3,0.09032472]
[1768403382294,3.5532485,3335.3,3334.1,3.08961477]
[1768403382295,7.106497,3335.3,3334.1,0.09032472]
[1768403382503,4.1082485,3335.3,3334.2,5.00903156]
[1768403382826,1.11,3335.3,3334.3,3.11939682]
[1768403383400,1.11,3335.3,3334.5,2.99889073]
[1768403383601,1.11,3335.3,3334.6,0.73214208]
[1768403383820,1.11,3335.3,3334.6,0.70215348]
[1768403384003,1.11,3335.3,3334.6,0.09032472]
[1768403384221,2.99751206,3336.1,3334.8,0.09032472]
[1768403384532,0.16,3336.2,3335.0,0.09032472]
[1768403384533,5.99489622,3336.2,3335.0,0.09032472]
[1768403384695,0.555,3336.1,3335.1,0.356]
[1768403385038,0.555,3336.1,3335.2,0.356]
[1768403386135,2.99760191,3336.0,3335.2,0.356]
[1768403386446,0.555,3336.1,3334.8,0.09032472]
[1768403386727,0.555,3336.1,3335.0,0.09032472]
[1768403386728,3.55252327,3336.1,3335.0,0.09032472]
[1768403386911,3.55252327,3336.1,3335.1,2.99835826]
[1768403387106,4.10752327,3336.1,3335.1,2.99835826]
[1768403387309,0.555,3336.3,3335.0,0.09032472]
[1768403387310,0.555,3336.3,3335.3,0.09032472]
[1768403387832,0.992726,3338.0,3336.5,0.09032472]
[1768403388000,2.99559512,3338.3,3336.6,0.356]
[1768403388205,0.992726,3338.5,3336.3,0.09032472]
[1768403388206,6.54703068,3337.8,3336.3,0.09032472]
[1768403388407,6.54703068,3337.8,3336.4,3.35321109]
[1768403388602,0.02997796,3337.7,3336.3,1.46806494]
[1768403388820,0.02997796,3337.7,3336.4,0.356]
[1768403389134,1.152726,3337.7,3336.5,0.356]
[1768403389530,1.707726,3337.7,3336.5,0.356]
[1768403389731,1.73770396,3337.7,3335.9,2.99761993]
[1768403389935,1.707726,3337.7,3336.0,3.35359016]
[1768403390234,0.16,3337.5,3336.1,2.45016839]
[1768403390412,0.16,3337.5,3336.1,2.09416839]
[1768403390613,0.16,3337.5,3336.2,0.356]
[1768403391208,1.547726,3337.7,3336.3,0.356]
[1768403391209,3.55107658,3337.7,3336.3,0.356]
[1768403391415,6.54715316,3337.7,3336.3,0.44632472]
[1768403391613,6.54715316,3337.7,3336.4,0.86258286]
[1768403392040,7.10215316,3337.7,3336.5,0.356]
[1768403393049,1.11,3337.7,3336.5,4.42501193]
[1768403393219,1.46503716,3338.8,3337.7,0.29959461]
[1768403393414,5.99035552,3338.7,3337.7,0.65559461]